{"text_format":"1","workbook":"xlsx","n_sheets":3,"sheets":["GUIDANCE","ANNEX 1","W_LIST"],"not_rendered":{"charts":0,"images":4,"macros":1,"external_links":0,"defined_names":2,"comments":0,"pivot_tables":0},"unopened":[],"bounds":{"document_bytes":16777216,"sheet_cells":100000,"rows_first":2000,"rows_last":500,"rows_between":2000,"halvings":0,"cell_chars":16384,"cell_head_chars":4096},"cells_cut":0,"cells_raw":0,"read":"whole","date_system":"1900"}

{"sheet":"GUIDANCE","index":0,"n_rows":24,"n_cols":13,"rows_kept":24,"cut":false,"hidden":false,"merged":[[20,3,21,8],[23,1,23,3],[17,1,17,12],[2,1,2,5],[3,1,3,4],[5,1,5,14],[8,1,8,12],[14,1,14,12],[11,1,11,12]]}
[]
[null,"MALTA FINANCIAL SERVICES AUTHORITY",null,null,null,null,null,null,null,null,null,null,{"$f":"TODAY()","v":"2019-01-11"}]
[null,"Whitepaper Registration Form"]
[null,"Annex 1"]
[]
[null,"GUIDANCE"]
[]
[null,"HIGH LEVEL GUIDELINES"]
[null,"Annex 1 to the Registration Form for Whitepaper under the Virtual Financial Assets Act ('the Whitepaper Registration Form' or 'the Application') should be duly filled in by the VFA Agent appointed by the Issuer of the Virtual Financial Assets ('VFA'). In this respect, the VFA Agent shall, to the best of its knowledge, provide information which is truthful, accurate and complete.\n\nThe VFA Agent shall notify the MFSA immediately if the information provided changes in any material respect either prior or subsequent to registration.\n\nThe VFA Agent understands that it is a criminal offence, under Article 53(2) of the Virtual Financial Assets Act ('the Act'), to knowingly or recklessly, furnish information or to make a statement which is inaccurate, false or misleading in any material respect, pursuant to any of the provisions of this Act or of any Regulations made or of any Rules issued thereunder, or any condition, obligation, requirement, directive or order made or given as aforesaid.\n\nThe VFA Agent is required to make reference, and where applicable comply with, the Act, the Regulations made or Rules issued thereunder during the completion of the Application. The Issuer and the VFA Agent shall also make reference to Chapter 2 of the VFA Rulebook when determining the applicable requirements. The VFA Agent shall also make reference to Chapter 1 of the VFA Rulebook.\n\nThe VFA Agent shall not tamper with, or modify in any manner this Annex. Should it transpire that these were tampered with, or modified in any manner, the Authority shall consider the Applicant to be in breach of these Guidelines. Any potential improvements should be communicated to the MFSA for consideration.\n\nThe Authority may, at its sole discretion, request the Applicant, through its VFA Agent, to provide any further information and/or documentation."]
[]
[null,"VFA AGENT DEFINITION FOR THE PURPOSE OF THIS ANNEX  "]
[null,"For the purpose of submissions of whitepapers by persons undertaking an activity in terms of Article 3 of the Act and are either [i] availing themselves of the transitory period under Article 62(1)(a) of the Act, or [ii] falling within scope of the exemption under Regulation 3 of the Virtual Financial Assets Regulations (Subsidiary Legislation 590.01 of the Laws of Malta) (‘the Regulations’) but will continue their offering after the 31 January 2019, the term VFA Agent shall refer to a person who is either: [a] registered as a VFA Agent in accordance with Article 7 of the Act; or [b] has submitted an application for registration as a VFA Agent in accordance with Article 7 of the Act, provided that such person shall have at least three proposed Designated Persons who have successfully completed a course approved by the Authority."]
[]
[null,"GUIDANCE ON THE ANNEX 1 TO THE WHITEPAPER REGISTRATION FORM"]
[null,"This Annex 1 to the Whitepaper Registration Form should only be viewed as a synopsis to the Whitepaper. Issuers of VFAs shall draw up a Whitepaper in accordance with the provisions of the VFA Act, the First Schedule to the Act and any regulations, rules or guidance made or issued thereunder.\n\nThe Whitepaper shall contain the information which, according to the particular nature of the Issuer and of the VFA, is necessary to enable investors to make an informed assessment of the VFA, its respective Issuer and the proposed project. This information shall be presented in an easily analysable and comprehensible form.\n\nThe respective matter to be specified in a Whitepaper in accordance with paragraphs 6 to 13 of the First Schedule to the Act shall be specified accordingly in the  following sheet. "]
[]
[null,"INSTRUCTIONS"]
[null,"All required details should be duly filled in. Should the respective detail be fulfilled a green indicator shall appear next to the respective number of the matter to be specified."]
[]
[]
[null,null,null,"For further guidance on the respective terms please refer to the Glossary."]
[]
[]
[null,"V.2018.12.21"]

{"sheet":"ANNEX 1","index":1,"n_rows":216,"n_cols":35,"rows_kept":216,"cut":false,"hidden":false,"merged":[[46,6,46,11],[46,3,46,5],[47,3,47,5],[48,3,48,5],[49,3,49,5],[50,3,50,5],[51,3,51,5],[25,6,25,7],[26,6,26,7],[27,6,27,7],[28,6,28,7],[29,6,29,7],[30,6,30,7],[30,9,30,11],[31,9,31,11],[32,9,32,11],[33,9,33,11],[19,6,19,7],[20,6,20,7],[21,6,21,7],[22,6,22,7],[23,6,23,7],[24,6,24,7],[45,6,45,11],[31,6,31,7],[32,6,32,7],[33,6,33,7],[34,6,34,7],[35,6,35,7],[36,6,36,7],[34,9,34,11],[35,9,35,11],[36,9,36,11],[37,9,37,11],[38,9,38,11],[39,9,39,11],[40,9,40,11],[37,6,37,7],[38,6,38,7],[39,6,39,7],[40,6,40,7],[2,1,2,5],[5,1,5,14],[8,1,8,12],[9,3,10,3],[9,4,10,4],[9,5,10,5],[11,9,11,11],[12,9,12,11],[13,9,13,11],[13,6,13,7],[15,9,15,11],[16,9,16,11],[17,9,17,11],[18,9,18,11],[9,9,10,11],[12,6,12,7],[3,1,3,4],[9,6,10,7],[9,8,10,8],[11,6,11,7],[14,6,14,7],[15,6,15,7],[16,6,16,7],[17,6,17,7],[18,6,18,7],[14,9,14,11],[52,3,52,5],[53,3,53,5],[54,3,54,5],[63,3,63,5],[64,3,64,5],[65,3,65,5],[66,3,66,5],[67,3,67,5],[58,3,58,5],[59,3,59,5],[60,3,60,5],[61,3,61,5],[62,3,62,5],[55,3,55,5],[56,3,56,5],[57,3,57,5],[73,3,73,5],[74,3,74,5],[75,3,75,5],[76,3,76,5],[77,3,77,5],[68,3,68,5],[69,3,69,5],[70,3,70,5],[71,3,71,5],[72,3,72,5],[62,6,62,11],[63,6,63,11],[64,6,64,11],[65,6,65,11],[66,6,66,11],[83,3,83,5],[47,6,47,11],[48,6,48,11],[49,6,49,11],[50,6,50,11],[51,6,51,11],[52,6,52,11],[53,6,53,11],[54,6,54,11],[55,6,55,11],[56,6,56,11],[57,6,57,11],[58,6,58,11],[59,6,59,11],[60,6,60,11],[61,6,61,11],[78,3,78,5],[79,3,79,5],[80,3,80,5],[72,6,72,11],[73,6,73,11],[74,6,74,11],[75,6,75,11],[76,6,76,11],[67,6,67,11],[68,6,68,11],[69,6,69,11],[70,6,70,11],[71,6,71,11],[82,6,82,11],[83,6,83,11],[87,6,87,11],[88,3,88,5],[88,6,88,11],[77,6,77,11],[78,6,78,11],[79,6,79,11],[80,6,80,11],[81,6,81,11],[81,3,81,5],[82,3,82,5],[92,3,92,5],[93,3,93,5],[91,6,91,11],[92,6,92,11],[93,6,93,11],[89,3,89,5],[89,6,89,11],[90,3,90,5],[90,6,90,11],[91,3,91,5],[103,3,104,3],[103,4,104,4],[103,5,104,5],[103,6,104,7],[103,8,104,8],[97,6,97,11],[98,3,98,5],[98,6,98,11],[110,6,110,7],[107,9,107,11],[108,9,108,11],[109,9,109,11],[110,9,110,11],[101,1,101,12],[111,6,111,7],[112,6,112,7],[113,6,113,7],[114,6,114,7],[105,6,105,7],[106,6,106,7],[107,6,107,7],[108,6,108,7],[109,6,109,7],[120,6,120,7],[121,6,121,7],[122,6,122,7],[123,6,123,7],[124,6,124,7],[115,6,115,7],[116,6,116,7],[117,6,117,7],[118,6,118,7],[119,6,119,7],[130,6,130,7],[131,6,131,7],[132,6,132,7],[133,6,133,7],[134,6,134,7],[125,6,125,7],[126,6,126,7],[127,6,127,7],[128,6,128,7],[129,6,129,7],[140,6,140,7],[141,6,141,7],[142,6,142,7],[143,6,143,7],[144,6,144,7],[135,6,135,7],[136,6,136,7],[137,6,137,7],[138,6,138,7],[139,6,139,7],[150,6,150,7],[151,6,151,7],[152,6,152,7],[153,6,153,7],[154,6,154,7],[145,6,145,7],[146,6,146,7],[147,6,147,7],[148,6,148,7],[149,6,149,7],[160,6,160,7],[161,6,161,7],[162,6,162,7],[163,6,163,7],[164,6,164,7],[155,6,155,7],[156,6,156,7],[157,6,157,7],[158,6,158,7],[159,6,159,7],[170,6,170,7],[171,6,171,7],[172,6,172,7],[173,6,173,7],[174,6,174,7],[165,6,165,7],[166,6,166,7],[167,6,167,7],[168,6,168,7],[169,6,169,7],[180,6,180,7],[181,6,181,7],[182,6,182,7],[183,6,183,7],[184,6,184,7],[175,6,175,7],[176,6,176,7],[177,6,177,7],[178,6,178,7],[179,6,179,7],[190,6,190,7],[191,6,191,7],[192,6,192,7],[193,6,193,7],[194,6,194,7],[185,6,185,7],[186,6,186,7],[187,6,187,7],[188,6,188,7],[189,6,189,7],[200,6,200,7],[201,6,201,7],[202,6,202,7],[203,6,203,7],[204,6,204,7],[195,6,195,7],[196,6,196,7],[197,6,197,7],[198,6,198,7],[199,6,199,7],[111,9,111,11],[103,12,104,12],[103,9,104,11],[105,9,105,11],[106,9,106,11],[117,9,117,11],[118,9,118,11],[119,9,119,11],[120,9,120,11],[121,9,121,11],[112,9,112,11],[113,9,113,11],[114,9,114,11],[115,9,115,11],[116,9,116,11],[127,9,127,11],[128,9,128,11],[129,9,129,11],[147,9,147,11],[130,9,130,11],[131,9,131,11],[122,9,122,11],[123,9,123,11],[124,9,124,11],[125,9,125,11],[126,9,126,11],[137,9,137,11],[138,9,138,11],[142,9,142,11],[143,9,143,11],[144,9,144,11],[145,9,145,11],[146,9,146,11],[139,9,139,11],[140,9,140,11],[141,9,141,11],[132,9,132,11],[133,9,133,11],[134,9,134,11],[135,9,135,11],[136,9,136,11],[152,9,152,11],[153,9,153,11],[154,9,154,11],[155,9,155,11],[156,9,156,11],[148,9,148,11],[149,9,149,11],[150,9,150,11],[151,9,151,11],[162,9,162,11],[163,9,163,11],[164,9,164,11],[165,9,165,11],[166,9,166,11],[157,9,157,11],[158,9,158,11],[159,9,159,11],[160,9,160,11],[161,9,161,11],[180,9,180,11],[181,9,181,11],[172,9,172,11],[173,9,173,11],[174,9,174,11],[175,9,175,11],[176,9,176,11],[167,9,167,11],[168,9,168,11],[169,9,169,11],[170,9,170,11],[171,9,171,11],[197,9,197,11],[198,9,198,11],[199,9,199,11],[200,9,200,11],[201,9,201,11],[192,9,192,11],[193,9,193,11],[194,9,194,11],[29,9,29,11],[195,9,195,11],[196,9,196,11],[187,9,187,11],[188,9,188,11],[189,9,189,11],[190,9,190,11],[191,9,191,11],[182,9,182,11],[183,9,183,11],[184,9,184,11],[185,9,185,11],[186,9,186,11],[177,9,177,11],[178,9,178,11],[179,9,179,11],[214,6,214,11],[215,3,215,5],[215,6,215,11],[218,3,219,8],[202,9,202,11],[203,9,203,11],[204,9,204,11],[209,6,209,11],[210,3,210,5],[210,6,210,11],[24,9,24,11],[25,9,25,11],[26,9,26,11],[27,9,27,11],[28,9,28,11],[19,9,19,11],[20,9,20,11],[21,9,21,11],[22,9,22,11],[23,9,23,11]]}
[]
[null,"MALTA FINANCIAL SERVICES AUTHORITY",null,null,null,null,null,null,null,null,null,null,{"$f":"TODAY()","v":"2019-01-11"}]
[null,"Whitepaper Registration Form"]
[null,"Annex 1"]
[]
[null,"MATTERS TO BE SPECIFIED IN A WHITEPAPER OF AN ISSUER - SYNOPSIS"]
[]
[null,"PERSONS RESPONSIBLE FOR THE WHITEPAPER"]
[null,"Kindly provide the details of the persons responsible for the Whitepaper and specify the respective section where that information is found within the Whitepaper. Kindly insert a new row for every person by clicking on the icon."]
[null,"l-6",null,"TITLE ","NAME ","SURNAME","FUNCTION",null,"HAS DECLARATION BEEN INCLUDED?","SPECIFY RELEVANT SECTION IN WHITEPAPER"]
[]
[null,1,null,null,null,null,null,null,null,null,null,null,null,null,null,null,{"$f":" COUNTBLANK(D12:L12)","v":9}]
[null,2,null,null,null,null,null,null,null,null,null,null,null,null,null,null,{"$f":" COUNTBLANK(D13:L13)","v":9}]
[null,3,null,null,null,null,null,null,null,null,null,null,null,null,null,null,{"$f":" COUNTBLANK(D14:L14)","v":9}]
[null,4,null,null,null,null,null,null,null,null,null,null,null,null,null,null,9]
[null,5,null,null,null,null,null,null,null,null,null,null,null,null,null,null,9]
[null,6,null,null,null,null,null,null,null,null,null,null,null,null,null,null,9]
[null,7,null,null,null,null,null,null,null,null,null,null,null,null,null,null,9]
[null,8,null,null,null,null,null,null,null,null,null,null,null,null,null,null,9]
[null,9,null,null,null,null,null,null,null,null,null,null,null,null,null,null,9]
[null,10,null,null,null,null,null,null,null,null,null,null,null,null,null,null,9]
[null,11,null,null,null,null,null,null,null,null,null,null,null,null,null,null,9]
[null,12,null,null,null,null,null,null,null,null,null,null,null,null,null,null,9]
[null,13,null,null,null,null,null,null,null,null,null,null,null,null,null,null,9]
[null,14,null,null,null,null,null,null,null,null,null,null,null,null,null,null,9]
[null,15,null,null,null,null,null,null,null,null,null,null,null,null,null,null,9]
[null,16,null,null,null,null,null,null,null,null,null,null,null,null,null,null,9]
[null,17,null,null,null,null,null,null,null,null,null,null,null,null,null,null,9]
[null,18,null,null,null,null,null,null,null,null,null,null,null,null,null,null,9]
[null,19,null,null,null,null,null,null,null,null,null,null,null,null,null,null,9]
[null,20,null,null,null,null,null,null,null,null,null,null,null,null,null,null,9]
[null,21,null,null,null,null,null,null,null,null,null,null,null,null,null,null,9]
[null,22,null,null,null,null,null,null,null,null,null,null,null,null,null,null,9]
[null,23,null,null,null,null,null,null,null,null,null,null,null,null,null,null,9]
[null,24,null,null,null,null,null,null,null,null,null,null,null,null,null,null,9]
[null,25,null,null,null,null,null,null,null,null,null,null,null,null,null,null,9]
[null,26,null,null,null,null,null,null,null,null,null,null,null,null,null,null,9]
[null,27,null,null,null,null,null,null,null,null,null,null,null,null,null,null,9]
[null,28,null,null,null,null,null,null,null,null,null,null,null,null,null,null,9]
[null,29,null,null,null,null,null,null,null,null,null,null,null,null,null,null,9]
[null,30,null,null,null,null,null,null,null,null,null,null,null,null,null,null,9]
[]
[]
[null,"THE OFFER TO THE PUBLIC"]
[null,"Kindly provide the relevant details to each of the following matters to be specified as required by the First Schedule to the Act, and specify the respective section where that information is found within the Whitepaper."]
[null,null,null,null,null,null,"DESCRIPTION",null,null,null,null,null,"SPECIFY RELEVANT SECTION IN WHITEPAPER"]
[null,"I-7(a)",null,"DESCRIPTION OF THE REASON BEHIND THE INITIAL VFA OFFERING",null,null,null,null,null,null,null,null,null,null,null,null,{"$f":" COUNTBLANK(G47:M47)","v":7}]
[null,"I-7(b)",null,"DETAILED TECHNICAL DESCRIPTION OF THE PROTOCOL, PLATFORM AND, OR APPLICATION, AS THE CASE MAY BE, AND THE ASSOCIATED BENEFITS",null,null,null,null,null,null,null,null,null,null,null,null,{"$f":" COUNTBLANK(G48:M48)","v":7}]
[null,"I-7(c)",null,"DETAILED DESCRIPTION OF THE SUSTAINABILITY AND SCALABILITY OF THE PROPOSED PROJECT",null,null,null,null,null,null,null,null,null,null,null,null,7]
[null,"I-7(d)",null,"ASSOCIATED CHALLENGES AND RISKS AS WELL AS MITIGATING MEASURES THEREOF",null,null,null,null,null,null,null,null,null,null,null,null,7]
[null,"I-7(e)",null,"DETAILED DESCRIPTION OF THE CHARACTERISTICS AND FUNCTIONALITY OF THE VIRTUAL FINANCIAL ASSETS BEING OFFERED",null,null,null,null,null,null,null,null,null,null,null,null,7]
[null,"I-7(f)",null,"DETAILED DESCRIPTION OF THE ISSUER, VFA AGENT, DEVELOPMENT TEAM, ADVISORS AND ANY OTHER SERVICE PROVIDERS THAT MAY BE DEPLOYED FOR THE REALISATION OF THE PROJECT",null,null,null,null,null,null,null,null,null,null,null,null,7]
[null,"I-7(g)",null,"DETAILED DESCRIPTION OF THE ISSUER’S WALLET/S USED",null,null,null,null,null,null,null,null,null,null,null,null,7]
[null,"I-7(h)",null,"DESCRIPTION OF THE SECURITY SAFEGUARDS AGAINST CYBER THREATS TO THE UNDERLYING PROTOCOL, TO ANY OFF-CHAIN ACTIVITIES AND TO ANY WALLETS USED BY THE ISSUER",null,null,null,null,null,null,null,null,null,null,null,null,7]
[null,"I-7(i)",null,"DETAILED DESCRIPTION OF THE LIFE CYCLE OF THE INITIAL VIRTUAL FINANCIAL ASSET OFFERING AND THE PROPOSED PROJECT",null,null,null,null,null,null,null,null,null,null,null,null,7]
[null,"I-7(j)",null,"DETAILED DESCRIPTION OF THE PAST AND FUTURE MILESTONES AND PROJECT FINANCING",null,null,null,null,null,null,null,null,null,null,null,null,7]
[null,"I-7(k)",null,"DETAILED DESCRIPTION OF THE TARGETED INVESTOR BASE",null,null,null,null,null,null,null,null,null,null,null,null,7]
[null,"I-7(l)",null,"EXCHANGE RATE OF THE VIRTUAL FINANCIAL ASSETS",null,null,null,null,null,null,null,null,null,null,null,null,7]
[null,"I-7(m)",null,"DESCRIPTION OF THE UNDERLYING PROTOCOL’S INTEROPERABILITY WITH OTHER PROTOCOLS",null,null,null,null,null,null,null,null,null,null,null,null,7]
[null,"I-7(n)",null,"DESCRIPTION OF THE MANNER FUNDS RAISED THROUGH THE INITIAL VIRTUAL FINANCIAL ASSET OFFERING WILL BE ALLOCATED",null,null,null,null,null,null,null,null,null,null,null,null,7]
[null,"I-7(o)",null,"THE AMOUNT AND PURPOSE OF THE ISSUE",null,null,null,null,null,null,null,null,null,null,null,null,7]
[null,"I-7(p)",null,"THE TOTAL NUMBER OF VIRTUAL FINANCIAL ASSETS TO BE ISSUED AND THEIR FEATURES",null,null,null,null,null,null,null,null,null,null,null,null,7]
[null,"I-7(q)",null,"THE DISTRIBUTION OF VIRTUAL FINANCIAL ASSETS",null,null,null,null,null,null,null,null,null,null,null,null,7]
[null,"I-7(r)",null,"THE CONSENSUS ALGORITHM (WHERE APPLICABLE)",null,null,null,null,null,null,null,null,null,null,null,null,7]
[null,"I-7(s)",null,"INCENTIVE MECHANISM TO SECURE ANY TRANSACTIONS, TRANSACTION AND/OR ANY OTHER APPLICABLE FEES",null,null,null,null,null,null,null,null,null,null,null,null,7]
[null,"I-7(t)",null,"IN THE CASE OF A NEW PROTOCOL, THE ESTIMATED SPEED OF TRANSACTIONS",null,null,null,null,null,null,null,null,null,null,null,null,7]
[null,"I-7(u)",null,"ANY APPLICABLE TAXES",null,null,null,null,null,null,null,null,null,null,null,null,7]
[null,"I-7(v)",null,"ANY SET SOFT CAP AND HARD CAP FOR THE OFFERING",null,null,null,null,null,null,null,null,null,null,null,null,7]
[null,"I-7(w)",null,"THE PERIOD DURING WHICH THE OFFER IS OPEN",null,null,null,null,null,null,null,null,null,null,null,null,7]
[null,"I-7(x)",null,"ANY PERSON UNDERWRITING OR GUARANTEEING THE OFFER",null,null,null,null,null,null,null,null,null,null,null,null,7]
[null,"I-7(y)",null,"ANY RESTRICTIONS ON THE FREE TRANSFERABILITY OF THE VIRTUAL FINANCIAL ASSETS BEING OFFERED AND THE DLT EXCHANGE/S ON WHICH THEY MAY BE TRADED, TO THE EXTENT KNOWN BY THE ISSUER",null,null,null,null,null,null,null,null,null,null,null,null,7]
[null,"I-7(z)",null,"METHODS OF PAYMENT",null,null,null,null,null,null,null,null,null,null,null,null,7]
[null,"I-7(aa)",null,"SPECIFIC NOTICE THAT INVESTORS PARTICIPATING IN THE INITIAL VIRTUAL FINANCIAL ASSET OFFERING WILL BE ABLE TO GET THEIR CONTRIBUTION BACK IF THE SOFT CAP IS NOT REACHED AT THE END OF THE OFFERING AND DETAILED DESCRIPTION OF THE REFUND MECHANISM, INCLUDING THE EXPECTED TIME-LINE OF WHEN SUCH REFUND WILL BE COMPLETED",null,null,null,null,null,null,null,null,null,null,null,null,7]
[null,"I-7(ab)",null,"DETAILED DESCRIPTION OF THE RISKS ASSOCIATED WITH THE VIRTUAL FINANCIAL ASSETS AND THE INVESTMENT THEREIN",null,null,null,null,null,null,null,null,null,null,null,null,7]
[null,"I-7(ac)",null,"THE PROCEDURE FOR THE EXERCISE OF ANY RIGHT OF PRE-EMPTION",null,null,null,null,null,null,null,null,null,null,null,null,7]
[null,"I-7(ad)",null,"DETAILED DESCRIPTION OF THE SMART CONTRACT/S, IF ANY, DEPLOYED INCLUDING INTER ALIA THE ADOPTED STANDARDS, ITS/THEIR UNDERLYING PROTOCOL/S, FUNCTIONALITY/-IES AND ASSOCIATED OPERATIONAL COSTS",null,null,null,null,null,null,null,null,null,null,null,null,7]
[null,"I-7(ae)",null,"IF ANY SMART CONTRACT/S IS/ARE DEPLOYED BY THE ISSUER, DETAILS OF THE AUDITOR WHO PERFORMED AN AUDIT ON IT/THEM",null,null,null,null,null,null,null,null,null,null,null,null,7]
[null,"I-7(af)",null,"DESCRIPTION OF ANY RESTRICTIONS EMBEDDED IN THE SMART CONTRACT/S DEPLOYED, IF ANY, INCLUDING INTER ALIA ANY INVESTMENT AND/OR GEOGRAPHICAL RESTRICTIONS",null,null,null,null,null,null,null,null,null,null,null,null,7]
[null,"I-7(ag)",null,"THE PROGRAMME AGENTS USED TO OBTAIN DATA AND VERIFY OCCURRENCES FROM SMART CONTRACTS (ALSO KNOWN AS ‘ORACLES’) USED AND DETAILED DESCRIPTION OF THEIR CHARACTERISTICS AND FUNCTIONALITY THEREOF",null,null,null,null,null,null,null,null,null,null,null,null,7]
[null,"I-7(ah)",null,"BONUSES APPLICABLE TO EARLY INVESTORS INCLUDING INTER ALIA DISCOUNTED PURCHASE PRICE FOR VIRTUAL FINANCIAL ASSETS",null,null,null,null,null,null,null,null,null,null,null,null,7]
[null,"I-7(ai)",null,"THE PERIOD DURING WHICH VOLUNTARY WITHDRAWALS ARE PERMITTED BY THE SMART CONTRACT, IF ANY",null,null,null,null,null,null,null,null,null,null,null,null,7]
[null,"I-7(aj)",null,"DESCRIPTION OF THE ISSUER’S ADOPTED WHITE-LISTING AND ANTI-MONEY LAUNDERING AND COUNTER FINANCING OF TERRORISM PROCEDURES IN TERMS OF THE PREVENTION OF MONEY LAUNDERING ACT AND ANY REGULATIONS MADE AND RULES ISSUED THEREUNDER",null,null,null,null,null,null,null,null,null,null,null,null,7]
[null,"I-7(ak)",null,"INTELLECTUAL PROPERTY RIGHTS ASSOCIATED WITH THE OFFERING AND PROTECTION THEREOF",null,null,null,null,null,null,null,null,null,null,null,null,7]
[null,"I-7(al)",null,"THE METHODS OF AND TIME-LIMITS FOR DELIVERY OF THE VIRTUAL FINANCIAL ASSETS",null,null,null,null,null,null,null,null,null,null,null,null,7]
[]
[null,"DETAILS OF ISSUER"]
[null,"Kindly provide details of the Issuer as required by the First Schedule to the Act, and specify the respective section where that information is found within the Whitepaper."]
[null,null,null,null,null,null,"DESCRIPTION",null,null,null,null,null,"SPECIFY RELEVANT SECTION IN WHITEPAPER"]
[null,"I-8.1",null,"ISSUER ENTITY REGISTERED AND/OR TRADE NAME/S",null,null,null,null,null,null,null,null,null,null,null,null,{"$f":" COUNTBLANK(G89:M89)","v":7}]
[null,"I-8.2",null,"REGISTERED ADDRESS AND REGISTRATION NUMBER",null,null,null,null,null,null,null,null,null,null,null,null,7]
[null,"I-8.3",null,"DATE OF REGISTRATION",null,null,null,null,null,null,null,null,null,null,null,null,7]
[null,"I-8.4",null,"THE ISSUER’S OBJECT(S)",null,null,null,null,null,null,null,null,null,null,null,null,7]
[null,"I-8.5",null,"THE GROUP OF UNDERTAKINGS TO WHICH THE ISSUER BELONGS WHERE APPLICABLE,",null,null,null,null,null,null,null,null,null,null,null,null,7]
[null,"I-8.6",null,"IN SO FAR AS THEY ARE KNOWN, INDICATION OF THE MEMBERS WHO DIRECTLY OR INDIRECTLY EXERCISE OR COULD EXERCISE A DETERMINING ROLE IN THE ISSUER’S ADMINISTRATION",null,null,null,null,null,null,null,null,null,null,null,null,7]
[]
[null,"THE ISSUER'S PRINCIPAL ACTIVITIES"]
[null,"Kindly provide details of the Issuer's principal activities as required by the First Schedule to the Act, and specify the respective section where that information is found within the Whitepaper."]
[null,null,null,null,null,null,"DESCRIPTION",null,null,null,null,null,"SPECIFY RELEVANT SECTION IN WHITEPAPER"]
[null,"I-9",null,"\nDESCRIPTION OF THE ISSUER’S PRINCIPAL ACTIVITIES INCLUDING THE DISCLOSURE OF ANY LEGAL PROCEEDINGS HAVING AN IMPORTANT EFFECT ON THE ISSUER’S FINANCIAL POSITION\n",null,null,null,null,null,null,null,null,null,null,null,null,{"$f":" COUNTBLANK(G99:M99)","v":7}]
[]
[null,"\nTHE ISSUER’S BOARD OF ADMINISTRATION\n"]
[null,"Kindly provide the details of the Issuer's Board of Administration, and specify the respective section where that information is found within the Whitepaper. Kindly insert a new row for every person by clicking on the icon."]
[]
[null,"l-10",null,"PERSON TYPE","IF ENTITY, FORM?","IF OTHER, \nKINDLY SPECIFY","NAME \nNOTE: FOR ENTITIES USE REGISTERED NAME FOR INDIVIDUALS, NAME AND SURNAME",null,"FUNCTION","ADDRESS",null,null,"SPECIFY RELEVANT SECTION IN WHITEPAPER"]
[]
[null,1,null,null,null,null,null,null,null,null,null,null,null,null,null,null,{"$f":"COUNTBLANK(D106:M106)","v":10},{"$f":"IF(AND(E106>0,E106<>\"Other\"),1,0)","v":0},null,null,null,null,null,null,null,null,null,null,null,null,null,null,{"$f":"IF(E106>0,1,0)","v":0},{"$f":"IF(E106=\"Other\",1,0)","v":0},{"$f":"IF(AND(AG106=1,AH106=1),1,0)","v":0}]
[null,2,null,null,null,null,null,null,null,null,null,null,null,null,null,null,{"$f":" COUNTBLANK(D107:M107)","v":10},{"$f":"IF(AND(E107>0,E107<>\"Other\"),1,0)","v":0},null,null,null,null,null,null,null,null,null,null,null,null,null,null,{"$f":"IF(E107>0,1,0)","v":0},{"$f":"IF(E107=\"Other\",1,0)","v":0},{"$f":"IF(AND(AG107=1,AH107=1),1,0)","v":0}]
[null,3,null,null,null,null,null,null,null,null,null,null,null,null,null,null,10,0,null,null,null,null,null,null,null,null,null,null,null,null,null,null,0,0,0]
[null,4,null,null,null,null,null,null,null,null,null,null,null,null,null,null,10,0,null,null,null,null,null,null,null,null,null,null,null,null,null,null,0,0,0]
[null,5,null,null,null,null,null,null,null,null,null,null,null,null,null,null,10,0,null,null,null,null,null,null,null,null,null,null,null,null,null,null,0,0,0]
[null,6,null,null,null,null,null,null,null,null,null,null,null,null,null,null,10,0,null,null,null,null,null,null,null,null,null,null,null,null,null,null,0,0,0]
[null,7,null,null,null,null,null,null,null,null,null,null,null,null,null,null,10,0,null,null,null,null,null,null,null,null,null,null,null,null,null,null,0,0,0]
[null,8,null,null,null,null,null,null,null,null,null,null,null,null,null,null,10,0,null,null,null,null,null,null,null,null,null,null,null,null,null,null,0,0,0]
[null,9,null,null,null,null,null,null,null,null,null,null,null,null,null,null,10,0,null,null,null,null,null,null,null,null,null,null,null,null,null,null,0,0,0]
[null,10,null,null,null,null,null,null,null,null,null,null,null,null,null,null,10,0,null,null,null,null,null,null,null,null,null,null,null,null,null,null,0,0,0]
[null,11,null,null,null,null,null,null,null,null,null,null,null,null,null,null,10,0,null,null,null,null,null,null,null,null,null,null,null,null,null,null,0,0,0]
[null,12,null,null,null,null,null,null,null,null,null,null,null,null,null,null,10,0,null,null,null,null,null,null,null,null,null,null,null,null,null,null,0,0,0]
[null,13,null,null,null,null,null,null,null,null,null,null,null,null,null,null,10,0,null,null,null,null,null,null,null,null,null,null,null,null,null,null,0,0,0]
[null,14,null,null,null,null,null,null,null,null,null,null,null,null,null,null,10,0,null,null,null,null,null,null,null,null,null,null,null,null,null,null,0,0,0]
[null,15,null,null,null,null,null,null,null,null,null,null,null,null,null,null,10,0,null,null,null,null,null,null,null,null,null,null,null,null,null,null,0,0,0]
[null,16,null,null,null,null,null,null,null,null,null,null,null,null,null,null,10,0,null,null,null,null,null,null,null,null,null,null,null,null,null,null,0,0,0]
[null,17,null,null,null,null,null,null,null,null,null,null,null,null,null,null,10,0,null,null,null,null,null,null,null,null,null,null,null,null,null,null,0,0,0]
[null,18,null,null,null,null,null,null,null,null,null,null,null,null,null,null,10,0,null,null,null,null,null,null,null,null,null,null,null,null,null,null,0,0,0]
[null,19,null,null,null,null,null,null,null,null,null,null,null,null,null,null,10,0,null,null,null,null,null,null,null,null,null,null,null,null,null,null,0,0,0]
[null,20,null,null,null,null,null,null,null,null,null,null,null,null,null,null,10,0,null,null,null,null,null,null,null,null,null,null,null,null,null,null,0,0,0]
[null,21,null,null,null,null,null,null,null,null,null,null,null,null,null,null,10,0,null,null,null,null,null,null,null,null,null,null,null,null,null,null,0,0,0]
[null,22,null,null,null,null,null,null,null,null,null,null,null,null,null,null,10,0,null,null,null,null,null,null,null,null,null,null,null,null,null,null,0,0,0]
[null,23,null,null,null,null,null,null,null,null,null,null,null,null,null,null,10,0,null,null,null,null,null,null,null,null,null,null,null,null,null,null,0,0,0]
[null,24,null,null,null,null,null,null,null,null,null,null,null,null,null,null,10,0,null,null,null,null,null,null,null,null,null,null,null,null,null,null,0,0,0]
[null,25,null,null,null,null,null,null,null,null,null,null,null,null,null,null,10,0,null,null,null,null,null,null,null,null,null,null,null,null,null,null,0,0,0]
[null,26,null,null,null,null,null,null,null,null,null,null,null,null,null,null,10,0,null,null,null,null,null,null,null,null,null,null,null,null,null,null,0,0,0]
[null,27,null,null,null,null,null,null,null,null,null,null,null,null,null,null,10,0,null,null,null,null,null,null,null,null,null,null,null,null,null,null,0,0,0]
[null,28,null,null,null,null,null,null,null,null,null,null,null,null,null,null,10,0,null,null,null,null,null,null,null,null,null,null,null,null,null,null,0,0,0]
[null,29,null,null,null,null,null,null,null,null,null,null,null,null,null,null,10,0,null,null,null,null,null,null,null,null,null,null,null,null,null,null,0,0,0]
[null,30,null,null,null,null,null,null,null,null,null,null,null,null,null,null,10,0,null,null,null,null,null,null,null,null,null,null,null,null,null,null,0,0,0]
[null,31,null,null,null,null,null,null,null,null,null,null,null,null,null,null,10,0,null,null,null,null,null,null,null,null,null,null,null,null,null,null,0,0,0]
[null,32,null,null,null,null,null,null,null,null,null,null,null,null,null,null,10,0,null,null,null,null,null,null,null,null,null,null,null,null,null,null,0,0,0]
[null,33,null,null,null,null,null,null,null,null,null,null,null,null,null,null,10,0,null,null,null,null,null,null,null,null,null,null,null,null,null,null,0,0,0]
[null,34,null,null,null,null,null,null,null,null,null,null,null,null,null,null,10,0,null,null,null,null,null,null,null,null,null,null,null,null,null,null,0,0,0]
[null,35,null,null,null,null,null,null,null,null,null,null,null,null,null,null,10,0,null,null,null,null,null,null,null,null,null,null,null,null,null,null,0,0,0]
[null,36,null,null,null,null,null,null,null,null,null,null,null,null,null,null,10,0,null,null,null,null,null,null,null,null,null,null,null,null,null,null,0,0,0]
[null,37,null,null,null,null,null,null,null,null,null,null,null,null,null,null,10,0,null,null,null,null,null,null,null,null,null,null,null,null,null,null,0,0,0]
[null,38,null,null,null,null,null,null,null,null,null,null,null,null,null,null,10,0,null,null,null,null,null,null,null,null,null,null,null,null,null,null,0,0,0]
[null,39,null,null,null,null,null,null,null,null,null,null,null,null,null,null,10,0,null,null,null,null,null,null,null,null,null,null,null,null,null,null,0,0,0]
[null,40,null,null,null,null,null,null,null,null,null,null,null,null,null,null,10,0,null,null,null,null,null,null,null,null,null,null,null,null,null,null,0,0,0]
[null,41,null,null,null,null,null,null,null,null,null,null,null,null,null,null,10,0,null,null,null,null,null,null,null,null,null,null,null,null,null,null,0,0,0]
[null,42,null,null,null,null,null,null,null,null,null,null,null,null,null,null,10,0,null,null,null,null,null,null,null,null,null,null,null,null,null,null,0,0,0]
[null,43,null,null,null,null,null,null,null,null,null,null,null,null,null,null,10,0,null,null,null,null,null,null,null,null,null,null,null,null,null,null,0,0,0]
[null,44,null,null,null,null,null,null,null,null,null,null,null,null,null,null,10,0,null,null,null,null,null,null,null,null,null,null,null,null,null,null,0,0,0]
[null,45,null,null,null,null,null,null,null,null,null,null,null,null,null,null,10,0,null,null,null,null,null,null,null,null,null,null,null,null,null,null,0,0,0]
[null,46,null,null,null,null,null,null,null,null,null,null,null,null,null,null,10,0,null,null,null,null,null,null,null,null,null,null,null,null,null,null,0,0,0]
[null,47,null,null,null,null,null,null,null,null,null,null,null,null,null,null,10,0,null,null,null,null,null,null,null,null,null,null,null,null,null,null,0,0,0]
[null,48,null,null,null,null,null,null,null,null,null,null,null,null,null,null,10,0,null,null,null,null,null,null,null,null,null,null,null,null,null,null,0,0,0]
[null,49,null,null,null,null,null,null,null,null,null,null,null,null,null,null,10,0,null,null,null,null,null,null,null,null,null,null,null,null,null,null,0,0,0]
[null,50,null,null,null,null,null,null,null,null,null,null,null,null,null,null,10,0,null,null,null,null,null,null,null,null,null,null,null,null,null,null,0,0,0]
[null,51,null,null,null,null,null,null,null,null,null,null,null,null,null,null,10,0,null,null,null,null,null,null,null,null,null,null,null,null,null,null,0,0,0]
[null,52,null,null,null,null,null,null,null,null,null,null,null,null,null,null,10,0,null,null,null,null,null,null,null,null,null,null,null,null,null,null,0,0,0]
[null,53,null,null,null,null,null,null,null,null,null,null,null,null,null,null,10,0,null,null,null,null,null,null,null,null,null,null,null,null,null,null,0,0,0]
[null,54,null,null,null,null,null,null,null,null,null,null,null,null,null,null,10,0,null,null,null,null,null,null,null,null,null,null,null,null,null,null,0,0,0]
[null,55,null,null,null,null,null,null,null,null,null,null,null,null,null,null,10,0,null,null,null,null,null,null,null,null,null,null,null,null,null,null,0,0,0]
[null,56,null,null,null,null,null,null,null,null,null,null,null,null,null,null,10,0,null,null,null,null,null,null,null,null,null,null,null,null,null,null,0,0,0]
[null,57,null,null,null,null,null,null,null,null,null,null,null,null,null,null,10,0,null,null,null,null,null,null,null,null,null,null,null,null,null,null,0,0,0]
[null,58,null,null,null,null,null,null,null,null,null,null,null,null,null,null,10,0,null,null,null,null,null,null,null,null,null,null,null,null,null,null,0,0,0]
[null,59,null,null,null,null,null,null,null,null,null,null,null,null,null,null,10,0,null,null,null,null,null,null,null,null,null,null,null,null,null,null,0,0,0]
[null,60,null,null,null,null,null,null,null,null,null,null,null,null,null,null,10,0,null,null,null,null,null,null,null,null,null,null,null,null,null,null,0,0,0]
[null,61,null,null,null,null,null,null,null,null,null,null,null,null,null,null,10,0,null,null,null,null,null,null,null,null,null,null,null,null,null,null,0,0,0]
[null,62,null,null,null,null,null,null,null,null,null,null,null,null,null,null,10,0,null,null,null,null,null,null,null,null,null,null,null,null,null,null,0,0,0]
[null,63,null,null,null,null,null,null,null,null,null,null,null,null,null,null,10,0,null,null,null,null,null,null,null,null,null,null,null,null,null,null,0,0,0]
[null,64,null,null,null,null,null,null,null,null,null,null,null,null,null,null,10,0,null,null,null,null,null,null,null,null,null,null,null,null,null,null,0,0,0]
[null,65,null,null,null,null,null,null,null,null,null,null,null,null,null,null,10,0,null,null,null,null,null,null,null,null,null,null,null,null,null,null,0,0,0]
[null,66,null,null,null,null,null,null,null,null,null,null,null,null,null,null,{"$f":" COUNTBLANK(D171:M171)","v":10},{"$f":"IF(AND(E171>0,E171<>\"Other\"),1,0)","v":0},null,null,null,null,null,null,null,null,null,null,null,null,null,null,{"$f":"IF(E171>0,1,0)","v":0},{"$f":"IF(E171=\"Other\",1,0)","v":0},{"$f":"IF(AND(AG171=1,AH171=1),1,0)","v":0}]
[null,67,null,null,null,null,null,null,null,null,null,null,null,null,null,null,10,0,null,null,null,null,null,null,null,null,null,null,null,null,null,null,0,0,0]
[null,68,null,null,null,null,null,null,null,null,null,null,null,null,null,null,10,0,null,null,null,null,null,null,null,null,null,null,null,null,null,null,0,0,0]
[null,69,null,null,null,null,null,null,null,null,null,null,null,null,null,null,10,0,null,null,null,null,null,null,null,null,null,null,null,null,null,null,0,0,0]
[null,70,null,null,null,null,null,null,null,null,null,null,null,null,null,null,10,0,null,null,null,null,null,null,null,null,null,null,null,null,null,null,0,0,0]
[null,71,null,null,null,null,null,null,null,null,null,null,null,null,null,null,10,0,null,null,null,null,null,null,null,null,null,null,null,null,null,null,0,0,0]
[null,72,null,null,null,null,null,null,null,null,null,null,null,null,null,null,10,0,null,null,null,null,null,null,null,null,null,null,null,null,null,null,0,0,0]
[null,73,null,null,null,null,null,null,null,null,null,null,null,null,null,null,10,0,null,null,null,null,null,null,null,null,null,null,null,null,null,null,0,0,0]
[null,74,null,null,null,null,null,null,null,null,null,null,null,null,null,null,10,0,null,null,null,null,null,null,null,null,null,null,null,null,null,null,0,0,0]
[null,75,null,null,null,null,null,null,null,null,null,null,null,null,null,null,10,0,null,null,null,null,null,null,null,null,null,null,null,null,null,null,0,0,0]
[null,76,null,null,null,null,null,null,null,null,null,null,null,null,null,null,10,0,null,null,null,null,null,null,null,null,null,null,null,null,null,null,0,0,0]
[null,77,null,null,null,null,null,null,null,null,null,null,null,null,null,null,10,0,null,null,null,null,null,null,null,null,null,null,null,null,null,null,0,0,0]
[null,78,null,null,null,null,null,null,null,null,null,null,null,null,null,null,10,0,null,null,null,null,null,null,null,null,null,null,null,null,null,null,0,0,0]
[null,79,null,null,null,null,null,null,null,null,null,null,null,null,null,null,10,0,null,null,null,null,null,null,null,null,null,null,null,null,null,null,0,0,0]
[null,80,null,null,null,null,null,null,null,null,null,null,null,null,null,null,10,0,null,null,null,null,null,null,null,null,null,null,null,null,null,null,0,0,0]
[null,81,null,null,null,null,null,null,null,null,null,null,null,null,null,null,10,0,null,null,null,null,null,null,null,null,null,null,null,null,null,null,0,0,0]
[null,82,null,null,null,null,null,null,null,null,null,null,null,null,null,null,10,0,null,null,null,null,null,null,null,null,null,null,null,null,null,null,0,0,0]
[null,83,null,null,null,null,null,null,null,null,null,null,null,null,null,null,10,0,null,null,null,null,null,null,null,null,null,null,null,null,null,null,0,0,0]
[null,84,null,null,null,null,null,null,null,null,null,null,null,null,null,null,10,0,null,null,null,null,null,null,null,null,null,null,null,null,null,null,0,0,0]
[null,85,null,null,null,null,null,null,null,null,null,null,null,null,null,null,10,0,null,null,null,null,null,null,null,null,null,null,null,null,null,null,0,0,0]
[null,86,null,null,null,null,null,null,null,null,null,null,null,null,null,null,10,0,null,null,null,null,null,null,null,null,null,null,null,null,null,null,0,0,0]
[null,87,null,null,null,null,null,null,null,null,null,null,null,null,null,null,10,0,null,null,null,null,null,null,null,null,null,null,null,null,null,null,0,0,0]
[null,88,null,null,null,null,null,null,null,null,null,null,null,null,null,null,10,0,null,null,null,null,null,null,null,null,null,null,null,null,null,null,0,0,0]
[null,89,null,null,null,null,null,null,null,null,null,null,null,null,null,null,10,0,null,null,null,null,null,null,null,null,null,null,null,null,null,null,0,0,0]
[null,90,null,null,null,null,null,null,null,null,null,null,null,null,null,null,10,0,null,null,null,null,null,null,null,null,null,null,null,null,null,null,0,0,0]
[null,91,null,null,null,null,null,null,null,null,null,null,null,null,null,null,10,0,null,null,null,null,null,null,null,null,null,null,null,null,null,null,0,0,0]
[null,92,null,null,null,null,null,null,null,null,null,null,null,null,null,null,10,0,null,null,null,null,null,null,null,null,null,null,null,null,null,null,0,0,0]
[null,93,null,null,null,null,null,null,null,null,null,null,null,null,null,null,10,0,null,null,null,null,null,null,null,null,null,null,null,null,null,null,0,0,0]
[null,94,null,null,null,null,null,null,null,null,null,null,null,null,null,null,10,0,null,null,null,null,null,null,null,null,null,null,null,null,null,null,0,0,0]
[null,95,null,null,null,null,null,null,null,null,null,null,null,null,null,null,10,0,null,null,null,null,null,null,null,null,null,null,null,null,null,null,0,0,0]
[null,96,null,null,null,null,null,null,null,null,null,null,null,null,null,null,10,0,null,null,null,null,null,null,null,null,null,null,null,null,null,null,0,0,0]
[null,97,null,null,null,null,null,null,null,null,null,null,null,null,null,null,10,0,null,null,null,null,null,null,null,null,null,null,null,null,null,null,0,0,0]
[null,98,null,null,null,null,null,null,null,null,null,null,null,null,null,null,10,0,null,null,null,null,null,null,null,null,null,null,null,null,null,null,0,0,0]
[null,99,null,null,null,null,null,null,null,null,null,null,null,null,null,null,10,0,null,null,null,null,null,null,null,null,null,null,null,null,null,null,0,0,0]
[null,100,null,null,null,null,null,null,null,null,null,null,null,null,null,null,10,0,null,null,null,null,null,null,null,null,null,null,null,null,null,null,0,0,0]
[]
[]
[null,"BENEFITS FOR THIRD PARTIES AND OTHER EXPENDITURE"]
[null,"Kindly provide details of the benefits for third parties and other expenditure as required by the First Schedule to the Act, and specify the respective section where that information is found within the Whitepaper."]
[null,null,null,null,null,null,"DESCRIPTION",null,null,null,null,null,"SPECIFY RELEVANT SECTION IN WHITEPAPER"]
[null,"I-11",null,"THE AMOUNT OR ESTIMATED AMOUNT OF PRELIMINARY EXPENSES AND THE PERSONS BY WHOM ANY OF THOSE EXPENSES HAVE BEEN PAID OR ARE PAYABLE, AND THE AMOUNT OR ESTIMATED AMOUNT OF THE EXPENSES OF THE ISSUE AND THE PERSONS BY WHOM ANY OF THOSE EXPENSES HAVE BEEN PAID OR ARE PAYABLE, IN WHATEVER FORM",null,null,null,null,null,null,null,null,null,null,null,null,{"$f":" COUNTBLANK(G211:M211)","v":7}]
[]
[null,"ISSUER'S FINANCIAL TRACK RECORD"]
[null,"Kindly provide details of the Issuer's financial track record as required by the First Schedule to the Act, and specify the respective section where that information is found within the Whitepaper."]
[null,null,null,null,null,null,"DESCRIPTION",null,null,null,null,null,"SPECIFY RELEVANT SECTION IN WHITEPAPER"]
[null,"I-12",null,"WHERE THE ISSUER HAS BEEN ESTABLISHED FOR A PERIOD EXCEEDING THREE YEARS, DETAILS OF ITS FINANCIAL TRACK RECORD",null,null,null,null,null,null,null,null,null,null,null,null,{"$f":" COUNTBLANK(G216:M216)","v":7}]

{"sheet":"W_LIST","index":2,"n_rows":8,"n_cols":4,"rows_kept":8,"cut":false,"hidden":true,"merged":[]}
["L_1","L_2","L_3","L_4"]
["Company ","Entity","Yes","Ms"]
["Partnership ","Individual",null,"Miss"]
["Foundation ",null,null,"Mrs"]
["Association ",null,null,"Mr"]
["Trusts",null,null,"Dr"]
["Other",null,null,"Prof"]
[null,null,null,"Ing"]